bitfinex-derivatives/quotes_ETHF0:USTF0_20250712
["timestamp","ask_amount","ask_price","bid_price","bid_amount"]
[1752308726357,3.22902,2969.5,2969.4,2.5116]
[1752308729063,3.22909,2969.3,2969.2,2.5116]
[1752308729762,2.5558,2969.3,2969.2,3.18489]
[1752308729960,2.5558,2969.3,2969.2,1.28399]
[1752308730161,2.5558,2969.3,2969.2,3.18489]
[1752308733359,3.22907,2969.3,2969.2,2.5116]
[1752308733558,2.5558,2969.3,2969.2,3.18489]
[1752308737565,1.6019,2969.3,2969.2,3.18489]
[1752308737965,0.638,2969.5,2969.4,1.28395]
[1752308738265,0.638,2969.9,2969.8,3.18476]
[1752308738464,5.7636,2970.1,2970.0,1.28381]
[1752308738769,5.7636,2970.1,2970.0,3.18471]
[1752308739160,5.47279,2970.1,2970.0,2.5116]
[1752308739361,6.43669,2970.1,2970.0,2.5116]
[1752308739562,5.7636,2970.1,2970.0,2.5116]
[1752308739761,5.7636,2970.1,2970.0,3.18471]
[1752308741161,2.5558,2970.1,2970.0,3.18471]
[1752308741768,3.22889,2970.1,2970.0,2.5116]
[1752308742462,2.5558,2970.1,2970.0,3.18471]
[1752308742767,3.22889,2970.1,2970.0,2.5116]
[1752308743173,2.5558,2970.1,2970.0,2.5116]
[1752308743469,3.22889,2970.1,2970.0,2.5116]
[1752308744867,2.5558,2970.1,2970.0,3.18471]
[1752308745271,3.22889,2970.1,2970.0,2.5116]
[1752308746176,3.22889,2970.1,2970.0,3.18471]
[1752308746676,3.22889,2970.1,2970.0,2.5116]
[1752308749772,1.32258,2969.7,2969.6,2.536]
[1752308749972,4.03969455,2969.7,2969.6,2.536]
[1752308750375,4.03969455,2969.7,2969.6,3.2092]
[1752308750574,3.19928,2969.7,2969.6,3.2092]
[1752308750871,2.5261,2969.7,2969.6,3.2092]
[1752308751376,3.19928,2969.7,2969.6,2.536]
[1752308752076,2.5261,2969.7,2969.6,3.2092]
[1752308753877,3.19928,2969.7,2969.6,2.536]
[1752308754878,3.19928,2969.7,2969.6,3.2092]
[1752308755177,3.19928,2969.7,2969.6,2.536]
[1752308755877,2.5261,2969.7,2969.6,3.2092]
[1752308756377,3.19928,2969.7,2969.6,2.536]
[1752308756677,2.5261,2969.7,2969.6,3.2092]
[1752308758473,3.19928,2969.7,2969.6,2.536]
[1752308759578,2.5261,2969.7,2969.6,3.2092]
[1752308759878,2.5261,2969.7,2969.6,2.536]
[1752308760078,2.5261,2969.7,2969.6,3.2092]
[1752308762775,3.19928,2969.7,2969.6,2.536]
[1752308763080,3.19928,2969.7,2969.6,3.2092]
[1752308763281,2.5261,2969.7,2969.6,3.2092]
[1752308766085,3.19928,2969.7,2969.6,2.536]
[1752308766473,3.19928,2969.7,2969.4,3.88103]
[1752308766474,3.19934,2969.5,2969.4,2.536]
[1752308766681,0.6494,2969.3,2969.2,3.20929]
[1752308766876,1.5877,2969.3,2969.2,3.20929]
[1752308767377,2.5261,2969.3,2969.2,3.20929]
[1752308767579,2.5261,2969.3,2969.2,2.27879]
[1752308767876,3.36651455,2969.3,2969.2,2.536]
[1752308768183,4.8915348,2969.3,2969.2,2.536]
[1752308768584,4.05112025,2969.3,2969.2,2.536]
[1752308769374,4.8915348,2969.3,2968.9,0.67334]
[1752308769580,0.6494,2969.0,2968.9,3.20936]
[1752308769879,2.5261,2969.0,2968.9,3.20936]
[1752308770082,2.5261,2969.0,2968.9,2.536]
[1752308770283,2.5261,2969.0,2968.9,3.20936]
[1752308770885,2.5261,2969.0,2968.9,2.536]
[1752308771483,2.5261,2969.0,2968.9,3.20936]
[1752308772183,3.19944,2969.0,2968.9,2.536]
[1752308772480,0.67337,2968.9,2968.8,0.6229]
[1752308772684,3.19947,2968.9,2968.8,2.536]
[1752308773082,2.5261,2968.9,2968.8,3.20938]
[1752308773385,3.19946,2968.9,2968.8,2.536]
[1752308773987,3.19946,2968.9,2968.7,3.2078]
[1752308773988,1.31919,2968.8,2968.7,1.5932]
[1752308774180,3.19599,2968.8,2968.7,2.5237]
[1752308775280,3.23244,2968.6,2968.5,0.6002]
[1752308775476,2.559,2968.6,2968.5,2.5007]
[1752308775680,2.559,2968.6,2968.5,3.17415]
[1752308775986,2.559,2968.6,2968.5,2.5007]
[1752308776186,3.23243,2968.6,2968.5,2.5007]
[1752308776588,3.23243,2968.6,2968.5,1.5932]
[1752308776881,1.31927,2968.4,2968.3,0.9075]
[1752308777187,3.23247,2968.4,2968.3,2.5007]
[1752308780085,3.23247,2968.4,2968.3,0.6002]
[1752308780289,3.2325,2968.3,2968.2,2.5007]
[1752308780991,2.559,2968.3,2968.2,2.5007]
[1752308781191,2.559,2968.3,2968.2,3.17422]
[1752308781391,2.559,2968.3,2968.2,2.5007]
[1752308781590,3.2325,2968.3,2968.2,2.5007]
[1752308782088,2.559,2968.3,2968.2,2.5007]
[1752308783292,2.559,2968.3,2968.2,3.17422]
[1752308786794,2.559,2968.5,2968.4,1.27367]
[1752308786991,0.6458,2968.5,2968.4,2.26667]
[1752308787192,0.6458,2968.5,2968.4,3.17417]
[1752308791896,1.9132,2969.1,2968.8,0.6002]
[1752308792094,2.559,2969.1,2969.0,1.27354]
[1752308792297,0.84897114,2969.1,2969.0,3.17404]
[1752308792496,0.84897114,2969.1,2968.7,4.89128]
[1752308792497,3.8536,2969.2,2969.1,1.27351]
[1752308792698,4.70274418,2969.2,2969.1,3.17401]
[1752308792997,3.8536,2969.2,2969.1,3.17401]
[1752308793203,0.6458,2969.2,2969.1,3.17401]
[1752308793803,2.559,2969.2,2969.1,3.17401]
[1752308803108,2.6011,2969.5,2969.4,2.17115]
[1752308803407,3.45123563,2969.5,2969.4,3.07865]
[1752308804310,2.6011,2969.5,2969.4,3.07865]
[1752308821911,3.452549,2969.5,2969.4,0.67325]
[1752308822117,2.5615,2969.3,2969.2,6.32479]
[1752308822311,3.40191455,2969.3,2969.2,6.32479]
[1752308823819,2.5615,2969.3,2969.2,6.32479]
[1752308824916,2.5615,2969.3,2969.2,3.11699]
[1752308825919,1.6067,2969.5,2969.4,3.11695]
[1752308826521,0.6262,2969.5,2969.4,3.11695]
[1752308827618,2.5615,2969.5,2969.4,3.11695]
[1752308827819,1.6067,2969.5,2969.4,3.11695]
[1752308828022,0.6262,2969.5,2969.4,3.11695]
[1752308828618,1.6067,2969.5,2969.4,3.11695]
[1752308828820,2.5615,2969.5,2969.4,3.11695]
[1752308829220,1.6067,2969.5,2969.4,3.11695]
[1752308829423,2.5615,2969.5,2969.4,3.11695]
[1752308831618,2.5615,2969.7,2969.6,3.1169]
[1752308831923,0.85190567,2969.7,2969.6,3.95731455]
[1752308832321,2.5615,2970.1,2970.0,2.18691]
[1752308832528,3.41345524,2970.1,2970.0,3.11681]
[1752308833523,3.37975524,2970.1,2970.0,3.11681]
[1752308836127,4.22016979,2970.1,2970.0,3.11681]
[1752308836827,4.22006979,2970.1,2970.0,2.4437]
[1752308837027,0.6447,2969.9,2969.8,3.20476]
[1752308837226,2.43981455,2969.9,2969.8,3.20476]
[1752308837527,3.38661455,2969.9,2969.8,3.20476]
[1752308838523,2.5462,2969.8,2969.7,0.9534]
[1752308838730,2.5462,2969.7,2969.6,0.9534]
[1752308839030,3.38661455,2969.7,2969.6,1.62659]
[1752308839225,3.38661455,2969.7,2969.6,2.55869]
[1752308840027,3.38661455,2969.7,2969.6,3.20479]
[1752308841526,4.05979455,2969.7,2969.6,2.5316]
[1752308841729,0.9468,2969.6,2969.5,0.9321]
[1752308842029,3.38661455,2969.6,2969.5,2.5316]
[1752308842224,3.38661455,2969.6,2969.5,3.20482]
[1752308845338,2.5462,2969.6,2969.5,3.20482]
[1752308845634,2.5462,2969.8,2969.7,3.20478]
[1752308845833,3.39734475,2969.8,2969.7,3.20478]
[1752308847041,2.5462,2969.8,2969.7,3.20478]
[1752308848343,3.39737544,2969.8,2969.7,3.20478]
[1752308849045,2.5462,2969.8,2969.7,3.20478]
[1752308849341,3.39743642,2969.8,2969.7,3.20478]
[1752308849532,2.5462,2969.8,2969.7,3.20478]
[1752308849736,3.39743642,2969.8,2969.7,3.20478]
[1752308855645,3.39743642,2969.8,2969.7,2.5316]
[1752308855847,3.39743642,2969.8,2969.7,3.20478]
[1752308857545,1.49593642,2969.8,2969.7,3.20478]
[1752308860952,3.39743642,2969.8,2969.7,3.20478]
[1752308867355,2.44273642,2969.8,2969.7,3.20478]
[1752308868453,3.41473642,2969.8,2969.7,3.20478]
[1752308869356,2.44273642,2969.8,2969.7,3.20478]
[1752308870056,1.49593642,2969.8,2969.7,3.20478]
[1752308871561,0.85123642,2969.8,2969.7,3.20478]
[1752308873661,3.44973642,2969.8,2969.7,3.20478]
[1752308892474,2.47773642,2969.8,2969.7,3.20478]
[1752308892681,0.85123642,2969.8,2969.7,3.20478]
[1752308893977,22.879,2969.9,2969.8,1.27316]
[1752308893978,23.5237,2969.9,2969.8,1.27316]
[1752308894171,24.37627446,2969.9,2969.8,3.13506]
[1752308894371,26.34077446,2969.9,2969.8,3.13506]
[1752308895076,3.46177446,2969.9,2969.8,3.13506]
[1752308899872,4.13490446,2969.9,2969.8,2.4619]
[1752308900078,4.13490446,2969.9,2969.8,3.13506]
[1752308900475,3.46177446,2969.9,2969.8,3.13506]
[1752308906781,4.09037253,2969.9,2969.8,3.13506]
[1752308913387,0.6218,2969.7,2969.6,2.489]
[1752308913590,1.25039807,2969.7,2969.6,2.489]
[1752308913789,3.17609807,2969.7,2969.6,2.489]
[1752308914091,2.5475,2969.6,2969.5,0.67827671]
[1752308914288,3.2207,2969.6,2969.5,0.67827671]
[1752308914487,2.5475,2969.6,2969.5,0.67827671]
[1752308914688,4.07312354,2969.6,2969.5,0.00505671]
[1752308914886,4.23839019,2969.6,2969.5,0.67827671]
[1752308915289,4.23839019,2969.6,2969.5,1.58967671]
[1752308915696,4.23839019,2969.6,2969.5,2.49407671]
[1752308916494,4.91159019,2969.6,2969.5,1.82085671]
[1752308917591,4.91159019,2969.6,2969.5,2.49407671]
[1752308917786,4.23839019,2969.6,2969.5,2.49407671]
[1752308919495,4.23839019,2969.6,2969.5,3.09407671]
[1752308920196,3.39992354,2969.6,2969.5,3.09407671]
[1752308920596,4.07312354,2969.6,2969.5,2.42085671]
[1752308921194,4.07312354,2969.6,2969.5,3.09407671]
[1752308922199,3.39992354,2969.6,2969.5,3.09407671]
[1752308924592,4.23839019,2969.6,2969.5,3.09407671]
[1752308924794,4.91159019,2969.6,2969.5,2.42085671]
[1752308930804,4.91159019,2969.6,2969.5,0.00505671]
[1752308931012,8.11939019,2969.6,2969.5,0.00505671]
[1752308931202,2.5137,2969.0,2968.9,6.38085]
[1752308931509,3.35216665,2969.0,2968.9,6.38085]
[1752308932596,2.5137,2969.0,2968.9,6.38085]
[1752308932796,2.5137,2969.0,2968.9,5.7075]
[1752308932998,2.5137,2969.0,2968.9,6.38086]
[1752308935008,2.5137,2969.0,2968.9,5.7075]
[1752308935212,2.5137,2969.0,2968.9,2.4997]
[1752308935710,2.5137,2969.0,2968.9,3.17306]
[1752308937913,3.18704,2969.0,2968.9,2.4997]
[1752308938411,2.5137,2969.0,2968.9,3.17306]
[1752308939009,3.18704,2969.0,2968.9,2.4997]
[1752308940706,3.18704,2969.0,2968.9,1.5823]
[1752308940906,3.81614877,2969.0,2968.9,1.5823]
[1752308941404,3.81614877,2969.0,2968.9,0.6398]
[1752308941713,3.18704,2969.0,2968.9,0.6398]
[1752308942807,4.02580315,2969.0,2968.9,0.6398]
[1752308945307,4.02580315,2969.0,2968.9,1.5823]
[1752308946216,4.02580315,2969.0,2968.9,0.6398]
[1752308946814,2.21186,2968.9,2968.8,1.8599]
[1752308947010,26.05406,2968.9,2968.8,1.8599]
[1752308947210,26.05406,2968.9,2968.4,3.2078]
[1752308947211,1.2969,2968.7,2968.6,2.4997]
[1752308947412,0.6235,2968.4,2968.3,1.31329]
[1752308947612,2.5137,2968.4,2968.3,2.25579]
[1752308948114,2.5137,2968.4,2968.3,3.17319]
[1752308950414,22.867,2968.5,2968.4,3.17317]
[1752308951713,25.3807,2968.5,2968.4,3.17317]
[1752308952416,0.00505671,2968.7,2968.6,3.17313]
[1752308952614,0.00505671,2968.7,2968.6,4.01189315]
[1752308957417,0.00505671,2968.7,2968.6,3.17313]
[1752308966124,0.00505671,2968.7,2968.6,6.38093]
[1752308966719,4.7261,2969.4,2969.3,3.22757]
[1752308967023,5.57763151,2969.4,2969.3,3.22757]
[1752308967224,2.36983151,2969.4,2969.3,3.22757]
[1752308967424,3.33913151,2969.4,2969.3,3.22757]
[1752308968530,2.4876,2969.4,2969.3,3.22757]
[1752308977028,2.4876,2969.6,2969.5,1.27892]
[1752308977232,2.4876,2969.6,2969.5,3.22752]
[1752308977826,25.3496,2969.7,2969.6,3.2275]
[1752308978833,2.4876,2969.7,2969.6,3.2275]
[1752308979033,0.6163,2969.7,2969.6,3.2275]
[1752308979223,25.3486,2969.9,2969.8,0.67315]
[1752308979428,25.3486,2969.9,2969.8,3.22745]
[1752308996644,0.9929,2969.8,2969.6,3.2078]
[1752308996848,3.20115699,2969.7,2969.6,0.6732]
[1752308997049,3.20115699,2969.7,2969.6,1.6454]
[1752308997349,3.20115699,2969.7,2969.6,3.23]
[1752308998352,1.31273,2969.5,2969.3,3.88106]
[1752308998643,2.5724,2969.3,2969.2,3.23009]
[1752308998844,3.41095165,2969.3,2969.2,3.23009]
[1752309000352,2.6062,2969.2,2969.1,0.67331]
[1752309000549,2.5724,2969.2,2969.1,1.64551]
[1752309000744,2.5724,2969.2,2969.1,3.23011]
[1752309005151,0.6395,2969.2,2969.1,3.23011]
[1752309005748,1.6324,2969.2,2969.1,3.23011]
[1752309006352,2.5724,2969.2,2969.1,3.23011]
[1752309019762,0.6395,2969.2,2969.1,3.23011]
[1752309020356,2.4678,2969.2,2969.1,3.23011]
[1752309025459,1.26834494,2969.2,2968.9,3.2078]
[1752309025762,1.92968494,2969.0,2968.5,3.2078]
[1752309025961,1.5435,2968.9,2968.8,2.26588]
[1752309026162,2.84570494,2968.9,2968.8,3.22778]
[1752309026359,3.75800494,2968.9,2968.8,3.22778]
[1752309027366,3.08464494,2968.9,2968.8,3.22778]
[1752309028366,3.75800494,2968.9,2968.8,3.22778]
[1752309028866,3.96792915,2968.9,2968.8,3.22778]
[1752309029859,3.29456915,2968.9,2968.8,3.22778]
[1752309030058,3.96792915,2968.9,2968.8,3.22778]
[1752309030262,3.96792915,2968.9,2968.8,0.67338]
[1752309030468,2.4558,2968.7,2968.6,2.5544]
[1752309030668,26.15056915,2968.7,2968.6,2.5544]
[1752309031059,26.82396915,2968.7,2968.6,2.5544]
[1752309031265,2.4558,2968.6,2968.5,2.25963]
[1752309032063,2.4558,2968.6,2968.5,3.22783]
[1752309036170,3.12923,2968.6,2968.5,3.22783]
[1752309036862,2.4558,2968.6,2968.5,3.22783]
[1752309038166,22.856,2968.7,2968.6,0.67343]
[1752309038472,23.4835,2968.7,2968.6,3.22783]
[1752309038862,22.856,2968.7,2968.6,3.22783]
[1752309039070,23.7703,2968.9,2968.8,3.22778]
[1752309039269,25.3138,2968.9,2968.8,3.22778]
[1752309039469,23.4855,2968.9,2968.8,3.22778]
[1752309039673,22.858,2968.9,2968.8,3.22778]
[1752309040675,23.4855,2968.9,2968.8,3.22778]
[1752309040878,25.3138,2968.9,2968.8,3.22778]
[1752309041576,24.3978,2968.9,2968.8,3.22778]
[1752309041777,23.4855,2968.9,2968.8,3.22778]
[1752309041978,22.858,2968.9,2968.8,3.22778]
[1752309043177,2.4558,2969.1,2969.0,3.22774]
[1752309049885,2.5149,2969.1,2969.0,3.22774]
[1752309055287,2.5168,2968.9,2968.8,0.67338]
[1752309055488,4.02892915,2968.9,2968.8,0.67338]
[1752309056882,3.35556915,2968.9,2968.5,3.2078]
[1752309057087,3.35556915,2968.9,2968.2,1.68375]
[1752309057088,2.12759915,2968.6,2968.4,0.9538]
[1752309057288,3.35556915,2968.5,2968.4,3.22587]
[1752309061584,2.5168,2968.5,2968.4,3.22587]
[1752309069489,45.71,2968.7,2968.6,0.67343]
[1752309069691,45.71,2968.7,2968.6,3.22583]
[1752309070095,48.2318,2968.9,2968.8,1.32588]
[1752309070302,49.08279377,2968.9,2968.8,3.22578]
[1752309070501,48.2318,2968.9,2968.8,3.22578]
[1752309070702,49.08274735,2968.9,2968.8,3.22578]
[1752309073603,46.56594735,2968.9,2968.8,3.22578]
[1752309074200,45.715,2968.9,2968.8,3.22578]
[1752309074599,47.5704,2968.9,2968.8,3.22578]
[1752309075408,47.5704,2968.9,2968.8,13.22578]
[1752309075708,3.35366915,2968.9,2968.8,13.22578]
[1752309077299,22.857,2969.0,2968.9,1.32766]
[1752309077499,23.70820074,2969.0,2968.9,2.32026]
[1752309077705,23.5165,2969.0,2968.9,3.26216]
[1752309077903,25.368,2969.0,2968.9,3.26216]
[1752309078102,23.5165,2969.0,2968.9,3.26216]
[1752309078509,0.6595,2969.0,2968.9,3.26216]
[1752309078711,0.6595,2969.0,2968.9,6.46996]
[1752309079008,24.7075,2969.2,2969.1,3.26211]
[1752309079009,23.5155,2969.2,2969.1,3.26211]
[1752309079214,24.36668079,2969.2,2969.1,3.26211]
[1752309079511,26.21818079,2969.2,2969.1,3.26211]
[1752309080106,0.85118079,2969.2,2969.1,3.26211]
[1752309082713,25.366,2969.5,2969.4,3.26204]
[1752309082912,26.21732675,2969.5,2969.4,3.26204]
[1752309084410,2.43622675,2969.5,2969.4,3.26204]
[1752309084711,25.365,2969.7,2969.6,3.262]
[1752309084913,3.36218766,2969.7,2969.6,3.262]
[1752309088713,1.51068766,2969.7,2969.4,1.9345]
[1752309088917,2.511,2969.3,2969.2,6.46989]
[1752309096313,1.5849,2969.3,2969.2,6.46989]
[1752309096719,0.6595,2969.3,2969.2,6.46989]
[1752309097225,2.511,2969.3,2969.2,6.46989]
[1752309098325,0.6595,2969.3,2969.2,6.46989]
[1752309099326,1.5849,2969.3,2969.2,6.46989]
[1752309099525,0.6595,2969.3,2969.2,6.46989]
[1752309099726,0.6595,2969.5,2969.4,3.26204]
[1752309100322,2.511,2969.7,2969.6,3.262]
[1752309100525,3.36134956,2969.7,2969.6,3.262]
[1752309101527,2.511,2969.7,2969.6,3.262]
[1752309102423,3.36157262,2969.7,2969.6,3.262]
[1752309102824,3.36157702,2969.7,2969.6,3.262]
[1752309106326,1.8513,2969.4,2969.3,0.67325]
[1752309106629,3.29496915,2969.4,2969.3,1.65505]
[1752309106830,3.29496915,2969.4,2969.3,3.23615]
[1752309108126,0.6049,2968.2,2968.1,3.66879857]
[1752309108333,3.29496915,2968.2,2968.1,0.653]
[1752309109331,3.96847915,2968.2,2968.1,0.653]
[1752309109528,0.6049,2967.8,2967.7,1.32661]
[1752309109722,2.4562,2967.8,2967.7,1.32661]
[1752309110129,2.4562,2967.8,2967.7,2.76001]
[1752309115534,2.4562,2968.1,2968.0,1.32655]
[1752309115737,2.4562,2968.1,2968.0,2.75995]
[1752309119140,4.7124,2968.5,2968.4,2.30826]
[1752309119342,5.38584,2968.5,2968.4,3.23636]
[1752309119536,4.7124,2968.5,2968.4,3.23636]
[1752309119932,3.8127,2968.9,2968.8,1.32637]
[1752309120139,5.57423283,2968.9,2968.8,1.32637]
[1752309120644,4.7124,2968.9,2968.8,1.32637]
[1752309120944,5.55116915,2968.9,2968.8,1.32637]
[1752309121243,2.4562,2968.8,2968.7,0.67338]
[1752309122133,3.12957,2968.8,2968.7,0.653]
[1752309122339,2.5247,2968.7,2968.5,0.67342]
[1752309122539,1.68325,2969.2,2968.2,4.1896]
[1752309122540,0.6049,2968.3,2968.2,1.6348]
[1752309122842,2.4562,2968.3,2968.2,2.30831]
[1752309123234,2.4562,2968.3,2968.2,1.32651]
[1752309125339,3.12968,2968.3,2968.2,1.32651]
[1752309125547,6.33748,2968.3,2968.1,0.67351]
[1752309125844,2.4562,2968.2,2968.1,1.32651]
[1752309126440,0.67353,2968.1,2968.0,0.67354]
[1752309126645,2.4562,2968.1,2968.0,1.32654]
[1752309128848,3.12973,2968.1,2968.0,0.653]
[1752309130047,3.12973,2968.1,2968.0,1.32655]
[1752309131448,2.4562,2968.1,2968.0,1.32655]
[1752309132344,3.12973,2968.1,2968.0,1.32655]
[1752309132546,3.12973,2968.1,2968.0,0.653]
[1752309132744,2.4562,2968.0,2967.9,1.32656]
[1752309132947,3.12975,2968.0,2967.9,1.32656]
[1752309134049,3.12975,2968.0,2967.9,1.32657]
[1752309134649,2.4562,2968.0,2967.9,1.32657]
[1752309136545,3.12975,2968.0,2967.9,1.32657]
[1752309136946,2.4562,2968.0,2967.9,1.32657]
[1752309137648,3.12975,2968.0,2967.9,1.32657]
[1752309138349,2.4562,2968.0,2967.9,1.32657]
[1752309140454,2.4562,2968.0,2967.9,2.22237]
[1752309142452,3.12975,2968.0,2967.9,2.22237]
[1752309142648,3.12975,2968.0,2967.9,1.32657]
[1752309143552,2.4562,2968.0,2967.9,1.32657]
[1752309145458,2.4562,2968.0,2967.9,2.22237]
[1752309146654,2.4562,2968.0,2967.9,3.14477]
[1752309148052,3.12975,2968.0,2967.9,3.14477]
[1752309148853,2.4562,2968.0,2967.9,3.14477]
[1752309150265,3.12976,2968.0,2967.9,3.14477]
[1752309150564,2.4562,2968.0,2967.9,3.14477]
[1752309151365,2.4562,2968.0,2967.9,26.08977]
[1752309153767,3.12976,2968.0,2967.9,26.08977]
[1752309154369,2.4562,2968.0,2967.9,26.08977]
[1752309154863,3.12976,2968.0,2967.9,26.08977]
[1752309155573,3.12976,2968.0,2967.9,25.16737]
[1752309156170,3.12976,2968.0,2967.9,2.22237]
[1752309156370,3.12976,2968.0,2967.9,24.26357]
[1752309156572,4.00842087,2968.0,2967.9,24.26357]
[1752309156871,3.12976,2968.0,2967.9,24.26357]
[1752309157073,4.00842064,2968.0,2967.9,0.653]
[1752309157271,1.6135,2967.7,2967.6,2.4426]
[1752309157577,95.26972652,2967.7,2967.0,0.6244]
[1752309157868,95.26972652,2967.7,2967.4,1.8182]
[1752309157869,3.2078,2967.5,2967.4,1.8182]
[1752309158075,4.1265,2967.5,2967.4,2.4426]
[1752309158469,4.80017,2967.5,2967.4,2.4426]
[1752309158665,4.1265,2967.5,2967.4,2.4426]
[1752309158869,4.80017,2967.5,2967.4,0.8958]
[1752309159070,0.67374,2967.2,2967.1,1.5468]
[1752309159268,4.80024,2967.2,2967.1,2.4426]
[1752309160874,4.1265,2967.2,2967.1,2.4426]
[1752309161076,5.03241327,2967.2,2967.1,2.4426]
[1752309161375,5.70615327,2967.2,2967.1,2.4426]
[1752309161767,5.03241327,2967.2,2967.1,2.4426]
[1752309162268,3.2078,2967.2,2967.1,2.4426]
[1752309162476,0.9187,2967.5,2967.0,0.83876915]
[1752309162477,0.9187,2967.5,2967.4,0.6244]
[1752309162674,1.82337302,2967.5,2967.4,2.4426]
[1752309163376,1.82626192,2967.5,2967.4,3.11629]
[1752309163871,0.90756192,2967.5,2967.4,3.11629]
[1752309165476,2.73823107,2967.5,2966.8,0.9665]
[1752309165676,4.1966,2967.2,2967.1,1.5841]
[1752309165974,5.70910915,2967.2,2967.1,1.5841]
[1752309166274,5.70910915,2967.2,2967.1,2.5506]
[1752309166671,5.70910915,2967.2,2967.1,1.5841]
[1752309166876,5.70910915,2967.2,2967.1,2.5506]
[1752309168380,1.6568,2967.0,2966.9,0.9604]
[1752309168683,2.50136915,2967.0,2966.9,0.9604]
[1752309168981,2.50136915,2967.0,2966.9,1.5841]
[1752309169279,2.50136915,2967.0,2966.9,2.5506]
[1752309171883,0.67963,2966.8,2966.7,0.9604]
[1752309172082,5.70919915,2966.8,2966.7,1.5841]
[1752309172778,5.71229915,2966.8,2966.7,0.9604]
[1752309172979,0.6797,2966.5,2966.4,2.5506]
[1752309173180,5.70926915,2966.5,2966.4,2.5506]
[1752309173872,5.70926915,2966.5,2966.4,3.22452]
[1752309174078,5.70926915,2966.5,2966.4,2.5506]
[1752309175580,5.70926915,2966.5,2966.4,1.5841]
[1752309175781,5.71236915,2966.5,2966.4,0.9604]
[1752309175976,1.58414,2966.3,2966.2,0.9665]
[1752309176181,4.02600915,2966.3,2966.2,1.5902]
[1752309177383,2.5133,2966.1,2966.0,1.5902]
[1752309177684,4.8109,2966.1,2966.0,2.26421]
[1752309178081,4.8109,2966.1,2966.0,3.22461]
[1752309178284,5.48489,2966.1,2966.0,2.5506]
[1752309178485,6.39509,2966.1,2966.0,2.5506]
[1752309178783,7.23385915,2966.1,2966.0,2.5506]
[1752309179579,1.29413,2965.9,2965.8,1.5902]
[1752309179787,3.35206915,2965.9,2965.8,2.5506]
[1752309180382,3.35206915,2965.9,2965.8,3.22466]
[1752309180576,2.44186915,2965.9,2965.8,3.22466]
[1752309183285,2.44186915,2965.9,2965.5,1.68532]
[1752309183485,1.45886915,2965.9,2965.8,1.29776]
[1752309183685,2.36906915,2965.9,2965.8,1.29776]
[1752309184088,3.35206915,2965.9,2965.8,1.29776]
[1752309185389,3.35206915,2965.9,2965.8,3.22466]
[1752309186090,3.35206915,2965.9,2965.8,2.25816]
[1752309186290,4.1908,2966.1,2966.0,2.26421]
[1752309186491,5.7211,2966.1,2966.0,3.22461]
[1752309187082,3.2078,2966.1,2966.0,3.22461]
[1752309188091,1.8932,2966.3,2966.2,3.22457]
[1752309188292,3.2078,2966.4,2966.3,3.22454]
[1752309189090,5.101,2966.4,2966.3,3.22454]
[1752309191292,3.2078,2966.4,2966.3,3.22454]
[1752309191493,5.101,2966.4,2966.3,3.22454]
[1752309193195,2.5133,2966.4,2966.3,3.22454]
[1752309193395,5.7211,2966.4,2966.3,3.22454]
[1752309194092,6.55986915,2966.4,2966.3,1.29764]
[1752309194493,6.55986915,2966.4,2966.3,3.17034]
[1752309195091,4.7381,2966.4,2966.3,3.17034]
[1752309195498,5.6718,2966.4,2966.3,3.17034]
[1752309200799,0.9337,2966.7,2966.6,1.28428]
[1752309201094,4.4180606,2967.4,2966.7,1.6846]
[1752309201302,4.7715,2967.4,2967.3,3.17552]
[1752309201494,4.11687034,2967.4,2967.3,3.17552]
[1752309201694,0.90907034,2967.4,2967.3,4.01428915]
[1752309201894,0.02532857,2967.4,2967.3,4.01428915]
[1752309202202,2.4974,2968.0,2967.9,2.26918]
[1752309202389,2.4974,2968.0,2967.9,3.17538]
[1752309203401,3.33616915,2968.0,2967.9,1.28398]
[1752309206300,3.33616915,2968.0,2967.9,3.17538]
[1752309210501,2.4974,2967.7,2967.6,3.17545]
[1752309210702,3.33616915,2967.7,2967.6,3.17545]
[1752309210898,3.33616915,2967.7,2967.6,1.28405]
[1752309211408,3.33616915,2967.7,2967.3,3.2078]
[1752309211409,2.4974,2967.6,2967.5,0.67367]
[1752309211605,3.33616915,2967.6,2967.5,0.67367]
[1752309211806,4.00981915,2967.6,2967.5,0.67367]
[1752309212000,3.33616915,2967.6,2967.5,0.67367]
[1752309215504,3.33616915,2967.6,2967.5,2.19027]
[1752309215710,3.33616915,2967.6,2967.5,3.17547]
[1752309218011,5.34480915,2968.1,2968.0,1.28396]
[1752309218309,5.61026915,2968.1,2968.0,1.28396]
[1752309218507,6.51270844,2968.1,2968.0,1.28396]
[1752309218708,7.44640844,2968.1,2968.0,1.28396]
[1752309219009,8.11994844,2968.1,2968.0,1.28396]
[1752309219308,6.54396915,2968.1,2968.0,1.28396]
[1752309219809,7.21750915,2968.1,2968.0,1.28396]
[1752309220001,6.54396915,2968.1,2968.0,1.28396]
[1752309220706,7.21750915,2968.1,2968.0,1.28396]
[1752309221710,7.21750915,2968.1,2968.0,0.6104]
[1752309222007,2.4974,2967.9,2967.8,3.1754]
[1752309222208,3.33616915,2967.9,2967.8,3.1754]
[1752309223109,4.00974915,2967.9,2967.8,3.1754]
[1752309223309,3.33616915,2967.9,2967.8,3.1754]
[1752309223809,3.33616915,2967.9,2967.8,2.1902]
[1752309224809,4.00974915,2967.9,2967.8,1.5166]
[1752309225011,0.67364,2967.7,2967.5,0.67365]
[1752309225207,0.6377,2967.5,2967.4,3.28969]
[1752309225508,2.5808,2967.5,2967.4,3.28969]
[1752309228908,3.25447,2967.5,2967.4,2.616]